fUST/lending_fUST_20250314
["ID","MTS","AMOUNT","RATE_DAILY","PERIOD"]
[356100373,1741902644704,-638.5,0.00013698,2]
[356100374,1741902644713,-296.560292,0.00013698,2]
[356100375,1741902644723,-296.560292,0.00013698,2]
[356100376,1741902644732,-296.560292,0.00013698,2]
[356100377,1741902644744,-296.560292,0.00013698,2]
[356100378,1741902644754,-500.0,0.00013698,2]
[356100379,1741902644764,-500.0,0.00013698,2]
[356100380,1741902644773,-500.0,0.00013698,2]
[356100381,1741902644783,-500.0,0.00013698,2]
[356100382,1741902644792,-695.23,0.00013698,2]
[356100383,1741902644802,-500.0,0.00013698,2]
[356100384,1741902644811,-500.0,0.00013698,2]
[356100385,1741902644821,-605.16,0.00013698,2]
[356100386,1741902644831,-500.0,0.00013698,2]
[356100387,1741902644841,-1013.59,0.00013698,2]
[356100388,1741902644850,-500.0,0.00013698,2]
[356100389,1741902644860,-543.59,0.00013698,2]
[356100390,1741902644870,-589.38,0.00013698,2]
[356100391,1741902644880,-520.36,0.00013698,2]
[356100392,1741902644890,-500.0,0.00013698,2]
[356100393,1741902644899,-509.75,0.00013698,2]
[356100394,1741902644910,-500.0,0.00013698,2]
[356100395,1741902644920,-500.0,0.00013698,2]
[356100396,1741902644930,-680.84,0.00013698,2]
[356100397,1741902644940,-1057.7,0.00013698,2]
[356100398,1741902644949,-1025.85120605,0.00013698,2]
[356100406,1741902646288,-541.09879395,0.00013698,2]
[356100407,1741902646298,-501.85,0.00013698,2]
[356100408,1741902646308,-584.37247262,0.00013698,2]
[356100409,1741902646318,-500.0,0.00013698,2]
[356100410,1741902646328,-639.33,0.00013698,2]
[356100411,1741902646338,-593.78,0.00013698,2]
[356100412,1741902646348,-584.48,0.00013698,2]
[356100414,1741902646358,-205.18873343,0.00013698,2]
[356100415,1741902646379,-294.81126657,0.00013698,2]
[356100416,1741902646389,-500.0,0.00013698,2]
[356100417,1741902646399,-330.33066234,0.00013698,2]
[356100438,1741903528071,3000.0,0.00014001,30]
[356100501,1741903835688,-300.0,0.00012683,2]
[356100502,1741903835699,-500.0,0.00012684,2]
[356100503,1741903835710,-500.0,0.00012684,2]
[356100504,1741903835719,-266.89245637,0.00012684,2]
[356100505,1741903835729,-203.0952553,0.00012684,2]
[356100506,1741903835739,-238.95627517,0.00012684,2]
[356100507,1741903835749,-23650.0,0.00012685,2]
[356100508,1741903835759,-10000.0,0.00012687,2]
[356100509,1741903835769,-500.0,0.00013164,2]
[356100510,1741903835779,-1914.0,0.00013391,2]
[356100511,1741903835788,-540.0,0.00013391,2]
[356100512,1741903835798,-2220.25751951,0.000135,2]
[356100514,1741903835807,-300.0,0.000136,4]
[356100516,1741903835817,-500.0,0.00013673,2]
[356100518,1741903835827,-500.0,0.00013673,2]
[356100520,1741903835837,-500.0,0.00013673,2]
[356100522,1741903835846,-500.0,0.00013673,2]
[356100524,1741903835856,-500.0,0.00013673,2]
[356100526,1741903835865,-500.0,0.00013673,2]
[356100528,1741903835875,-500.0,0.00013673,2]
[356100530,1741903835884,-500.0,0.00013673,2]
[356100531,1741903835894,-500.0,0.00013673,2]
[356100532,1741903835904,-500.0,0.00013673,2]
[356100533,1741903835914,-500.0,0.00013673,2]
[356100534,1741903835923,-500.0,0.00013673,2]
[356100535,1741903835933,-500.0,0.00013673,2]
[356100536,1741903835943,-500.0,0.00013673,2]
[356100537,1741903835952,-500.0,0.00013673,2]
[356100538,1741903835961,-500.0,0.00013673,2]
[356100539,1741903835971,-500.0,0.00013673,2]
[356100540,1741903835980,-500.0,0.00013673,2]
[356100541,1741903835990,-834.77361048,0.00013688,2]
[356100542,1741903836000,-5412.25074276,0.00013698,2]
[356100543,1741903836010,-151.0,0.00013698,2]
[356100544,1741903836020,-151.0,0.00013698,2]
[356100545,1741903836030,-151.0,0.00013698,2]
[356100546,1741903836040,-151.0,0.00013698,2]
[356100547,1741903836049,-151.0,0.00013698,2]
[356100548,1741903836058,-151.0,0.00013698,2]
[356100549,1741903836068,-489.659864,0.00013698,2]
[356100550,1741903836078,-489.659864,0.00013698,2]
[356100551,1741903836087,-489.659864,0.00013698,2]
[356100552,1741903836096,-489.659864,0.00013698,2]
[356100553,1741903836107,-500.0,0.00013698,2]
[356100554,1741903836116,-151.0,0.00013698,2]
[356100555,1741903836126,-151.0,0.00013698,2]
[356100556,1741903836135,-151.0,0.00013698,2]
[356100557,1741903836145,-296.617118,0.00013698,2]
[356100558,1741903836154,-500.0,0.00013698,2]
[356100559,1741903836164,-151.0,0.00013698,2]
[356100560,1741903836173,-151.0,0.00013698,2]
[356100561,1741903836184,-151.0,0.00013698,2]
[356100562,1741903836195,-151.0,0.00013698,2]
[356100563,1741903836205,-212.59835,0.00013698,2]
[356100564,1741903836215,-500.0,0.00013698,2]
[356100565,1741903836225,-500.0,0.00013698,2]
[356100566,1741903836234,-195.227113,0.00013698,2]
[356100567,1741903836244,-195.227113,0.00013698,2]
[356100568,1741903836254,-195.227113,0.00013698,2]
[356100569,1741903836263,-195.227113,0.00013698,2]
[356100570,1741903836273,-195.227113,0.00013698,2]
[356100571,1741903836283,-195.227113,0.00013698,2]
[356100572,1741903836292,-500.0,0.00013698,2]
[356100573,1741903836302,-660.72,0.00013698,2]
[356100574,1741903836312,-611.9,0.00013698,2]
[356100575,1741903836322,-500.0,0.00013698,2]
[356100576,1741903836332,-500.0,0.00013698,2]
[356100577,1741903836343,-500.0,0.00013698,2]
[356100578,1741903836353,-666.27,0.00013698,2]
[356100579,1741903836363,-500.0,0.00013698,2]
[356100580,1741903836373,-500.0,0.00013698,2]
[356100581,1741903836383,-500.0,0.00013698,2]
[356100582,1741903836392,-151.0,0.00013698,2]
[356100583,1741903836403,-151.0,0.00013698,2]
[356100584,1741903836413,-151.0,0.00013698,2]
[356100585,1741903836423,-500.0,0.00013698,2]
[356100586,1741903836433,-500.0,0.00013698,2]
[356100587,1741903836444,-151.0,0.00013698,2]
[356100588,1741903836453,-652.48,0.00013698,2]
[356100589,1741903836465,-151.0,0.00013698,2]
[356100590,1741903836475,-151.0,0.00013698,2]
[356100591,1741903836485,-291.56971,0.00013698,2]
[356100592,1741903836495,-500.0,0.00013698,2]
[356100593,1741903836507,-500.0,0.00013698,2]
[356100594,1741903836518,-500.0,0.00013698,2]
[356100595,1741903836528,-500.0,0.00013698,2]
[356100596,1741903836539,-500.0,0.00013698,2]
[356100597,1741903836550,-795.64,0.00013698,2]
[356100598,1741903836560,-814.05,0.00013698,2]
[356100599,1741903836570,-569.04,0.00013698,2]
[356100600,1741903836581,-500.0,0.00013698,2]
[356100601,1741903836591,-500.0,0.00013698,2]
[356100602,1741903836601,-673.33,0.00013698,2]
[356100603,1741903836611,-750.63,0.00013698,2]
[356100604,1741903836621,-500.0,0.00013698,2]
[356100605,1741903836630,-611.48,0.00013698,2]
[356100606,1741903836640,-1021.23,0.00013698,2]
[356100607,1741903836650,-500.0,0.00013698,2]
[356100608,1741903836660,-500.0,0.00013698,2]
[356100609,1741903836670,-500.0,0.00013698,2]
[356100610,1741903836680,-528.26,0.00013698,2]
[356100611,1741903836690,-500.0,0.00013698,2]
[356100612,1741903836700,-500.0,0.00013698,2]
[356100613,1741903836710,-500.0,0.00013698,2]
[356100614,1741903836719,-515.02,0.00013698,2]
[356100615,1741903836729,-500.0,0.00013698,2]
[356100616,1741903836739,-500.0,0.00013698,2]
[356100617,1741903836750,-500.0,0.00013698,2]
[356100618,1741903836760,-1321.64,0.00013698,2]
[356100619,1741903836769,-500.0,0.00013698,2]
[356100620,1741903836780,-1054.93,0.00013698,2]
[356100621,1741903836790,-954.06,0.00013698,2]
[356100622,1741903836799,-1566.58,0.00013698,2]
[356100623,1741903836810,-500.0,0.00013698,2]
[356100624,1741903836819,-2122.57,0.00013698,2]
[356100625,1741903836829,-672.15,0.00013698,2]
[356100626,1741903836839,-513.88,0.00013698,2]
[356100627,1741903836848,-768.8,0.00013698,2]
[356100628,1741903836858,-500.0,0.00013698,2]
[356100629,1741903836868,-1222.96,0.00013698,2]
[356100630,1741903836877,-500.0,0.00013698,2]
[356100631,1741903836887,-500.0,0.00013698,2]
[356100632,1741903836896,-1899.96,0.00013698,2]
[356100633,1741903836905,-774.07,0.00013698,2]
[356100634,1741903836915,-612.25,0.00013698,2]
[356100635,1741903836924,-500.0,0.00013698,2]
[356100636,1741903836934,-640.43,0.00013698,2]
[356100637,1741903836943,-500.0,0.00013698,2]
[356100638,1741903836953,-1158.88,0.00013698,2]
[356100639,1741903836963,-500.0,0.00013698,2]
[356100640,1741903836972,-997.65,0.00013698,2]
[356100641,1741903836982,-673.41,0.00013698,2]
[356100642,1741903836991,-579.94,0.00013698,2]
[356100643,1741903837002,-500.0,0.00013698,2]
[356100644,1741903837012,-390.40485415,0.00013698,2]
[356100742,1741903840730,-399.0,0.00013391,2]
[356100744,1741903840741,-109.59514585,0.00013698,2]
[356100746,1741903840750,-500.0,0.00013698,2]
[356100748,1741903840760,-748.0,0.00013698,2]
[356100750,1741903840769,-520.94,0.00013698,2]
[356100752,1741903840779,-500.0,0.00013698,2]
[356100754,1741903840789,-500.0,0.00013698,2]
[356100756,1741903840799,-1013.63,0.00013698,2]
[356100758,1741903840808,-500.0,0.00013698,2]
[356100760,1741903840817,-500.0,0.00013698,2]
[356100762,1741903840827,-500.0,0.00013698,2]
[356100765,1741903840839,-500.0,0.00013698,2]
[356100767,1741903840852,-971.36,0.00013698,2]
[356100769,1741903840863,-612.7,0.00013698,2]
[356100771,1741903840872,-500.0,0.00013698,2]
[356100773,1741903840881,-500.0,0.00013698,2]
[356100775,1741903840891,-674.7,0.00013698,2]
[356100777,1741903840900,-500.0,0.00013698,2]
[356100779,1741903840910,-560.13,0.00013698,2]
[356100781,1741903840920,-808.95,0.00013698,2]
[356100783,1741903840929,-500.0,0.00013698,2]
[356100785,1741903840939,-624.97,0.00013698,2]
[356100787,1741903840950,-500.0,0.00013698,2]
[356100789,1741903840960,-500.0,0.00013698,2]
[356100791,1741903840969,-564.82,0.00013698,2]
[356100793,1741903840979,-533.51,0.00013698,2]
[356100795,1741903840988,-485.08,0.00013698,2]
[356100797,1741903840997,-500.0,0.00013698,2]
[356100799,1741903841007,-500.0,0.00013698,2]
[356100801,1741903841016,-500.0,0.00013698,2]
[356100804,1741903841026,-916.59,0.00013698,2]
[356100806,1741903841035,-500.0,0.00013698,2]
[356100808,1741903841045,-537.55854723,0.00013698,2]
[356100810,1741903841054,-500.0,0.00013698,2]
[356100812,1741903841064,-1082.01,0.00013698,2]
[356100814,1741903841075,-500.0,0.00013698,2]
[356100816,1741903841084,-500.0,0.00013698,2]
[356100818,1741903841094,-500.0,0.00013698,2]
[356100820,1741903841103,-500.0,0.00013698,2]
[356100822,1741903841112,-500.0,0.00013698,2]
[356100824,1741903841122,-879.7,0.00013698,2]
[356100826,1741903841132,-500.0,0.00013698,2]
[356100828,1741903841142,-539.39,0.00013698,2]
[356100830,1741903841152,-500.0,0.00013698,2]
[356100832,1741903841162,-656.39,0.00013698,2]
[356100834,1741903841172,-1398.4,0.00013698,2]
[356100836,1741903841182,-7343.08,0.00013698,2]
[356100838,1741903841191,-500.0,0.00013698,2]
[356100841,1741903841202,-726.83,0.00013698,2]
[356100843,1741903841212,-500.0,0.00013698,2]
[356100845,1741903841222,-863.76,0.00013698,2]
[356100847,1741903841232,-8732.58,0.00013698,2]
[356100849,1741903841241,-500.0,0.00013698,2]
[356100851,1741903841251,-1347.72,0.00013698,2]
[356100853,1741903841260,-284.902276,0.00013698,2]
[356100855,1741903841270,-284.902276,0.00013698,2]
[356100857,1741903841289,-284.902276,0.00013698,2]
[356100860,1741903841298,-284.902276,0.00013698,2]
[356100862,1741903841307,-284.902276,0.00013698,2]
[356100864,1741903841318,-284.902276,0.00013698,2]
[356100866,1741903841328,-284.902276,0.00013698,2]
[356100868,1741903841344,-284.902276,0.00013698,2]
[356100870,1741903841354,-284.902276,0.00013698,2]
[356100872,1741903841365,-284.902276,0.00013698,2]
[356100874,1741903841375,-1432.72,0.00013698,2]
[356100876,1741903841385,-500.0,0.00013698,2]
[356100878,1741903841396,-500.0,0.00013698,2]
[356100881,1741903841405,-1144.96,0.00013698,2]
[356100883,1741903841415,-9321.29,0.00013698,2]
[356100885,1741903841424,-853.15,0.00013698,2]
[356100887,1741903841434,-500.0,0.00013698,2]
[356100889,1741903841443,-4293.88,0.00013698,2]
[356100891,1741903841455,-500.0,0.00013698,2]
[356100893,1741903841471,-2785.16,0.00013698,2]
[356100895,1741903841480,-500.0,0.00013698,2]
[356100897,1741903841490,-1128.02,0.00013698,2]
[356100899,1741903841499,-500.0,0.00013698,2]
[356100901,1741903841510,-500.0,0.00013698,2]
[356100903,1741903841520,-14394.65,0.00013698,2]
[356100905,1741903841530,-584.24,0.00013698,2]
[356100907,1741903841540,-1347.25,0.00013698,2]
[356100909,1741903841551,-500.0,0.00013698,2]
[356100912,1741903841561,-547.16,0.00013698,2]
[356100914,1741903841572,-6081.41,0.00013698,2]
[356100916,1741903841582,-2266.7,0.00013698,2]
[356100918,1741903841591,-500.0,0.00013698,2]
[356100920,1741903841601,-1766.4,0.00013698,2]
[356100922,1741903841611,-1271.0,0.00013698,2]
[356100924,1741903841620,-702.71,0.00013698,2]
[356100926,1741903841630,-500.0,0.00013698,2]
[356100928,1741903841640,-500.0,0.00013698,2]
[356100932,1741903841665,-619.87,0.00013698,2]
[356100934,1741903841676,-1783.58,0.00013698,2]
[356100936,1741903841687,-789.46,0.00013698,2]
[356100938,1741903841698,-500.0,0.00013698,2]
[356100940,1741903841710,-500.0,0.00013698,2]
[356100943,1741903841721,-14014.98,0.00013698,2]
[356100945,1741903841732,-653.99,0.00013698,2]
[356100947,1741903841743,-794.57,0.00013698,2]
[356100949,1741903841755,-2000.38,0.00013698,2]
[356100951,1741903841766,-500.0,0.00013698,2]
[356100954,1741903841777,-500.0,0.00013698,2]
[356100956,1741903841787,-4658.38,0.00013698,2]
[356100958,1741903841797,-610.52,0.00013698,2]
[356100960,1741903841808,-500.0,0.00013698,2]
[356100961,1741903841818,-316.79634133,0.00013698,2]
[356100962,1741903841828,-500.0,0.00013698,2]
[356100963,1741903841839,-2217.58,0.00013698,2]
[356100964,1741903841850,-1163.56,0.00013698,2]
[356100965,1741903841860,-500.0,0.00013698,2]
[356100966,1741903841871,-2171.63,0.00013698,2]
[356100968,1741903841882,-581.74,0.00013698,2]
[356100970,1741903841894,-500.0,0.00013698,2]
[356100971,1741903841903,-500.0,0.00013698,2]
[356100972,1741903841913,-500.0,0.00013698,2]
[356100973,1741903841924,-716.81,0.00013698,2]
[356100974,1741903841935,-500.0,0.00013698,2]
[356100975,1741903841947,-500.0,0.00013698,2]
[356100976,1741903841957,-558.83,0.00013698,2]
[356100977,1741903841968,-500.0,0.00013698,2]
[356100978,1741903841979,-1519.37,0.00013698,2]
[356100979,1741903841989,-2055.14,0.00013698,2]
[356100980,1741903841999,-1560.68,0.00013698,2]
[356100981,1741903842009,-1211.72,0.00013698,2]
[356100982,1741903842020,-500.0,0.00013698,2]
[356100983,1741903842031,-500.0,0.00013698,2]
[356100984,1741903842041,-500.0,0.00013698,2]
[356100985,1741903842052,-151.0,0.00013698,2]
[356100986,1741903842062,-151.0,0.00013698,2]
[356100987,1741903842072,-500.0,0.00013698,2]
[356100988,1741903842082,-500.0,0.00013698,2]
[356100989,1741903842094,-151.0,0.00013698,2]
[356100990,1741903842104,-151.0,0.00013698,2]
[356100991,1741903842115,-189.395484,0.00013698,2]
[356100992,1741903842126,-1069.97,0.00013698,2]
[356100993,1741903842136,-500.0,0.00013698,2]
[356100994,1741903842146,-5392.05,0.00013698,2]
[356100995,1741903842157,-670.0,0.00013698,2]
[356100996,1741903842167,-2105.87,0.00013698,2]
[356100997,1741903842178,-1333.01,0.00013698,2]
[356100998,1741903842188,-536.84,0.00013698,2]
[356100999,1741903842199,-500.0,0.00013698,2]
[356101000,1741903842210,-7451.92,0.00013698,2]
[356101001,1741903842220,-500.0,0.00013698,2]
[356101002,1741903842230,-500.0,0.00013698,2]
[356101003,1741903842240,-1462.88,0.00013698,2]
[356101004,1741903842250,-177.936175,0.00013698,2]
[356101005,1741903842261,-95746.4282869,0.00013698,2]
[356101041,1741903843745,-500.0,0.00012684,2]
[356101043,1741903843755,-187.13834497,0.00012684,2]
[356101045,1741903843765,-1085.73710729,0.00013698,2]
[356101046,1741903843778,-79127.69460581,0.00013698,2]
[356101047,1741903843788,-500.0,0.00013698,2]
[356101048,1741903843798,-177.936175,0.00013698,2]
[356101049,1741903843807,-177.936175,0.00013698,2]
[356101050,1741903843817,-177.936175,0.00013698,2]
[356101051,1741903843826,-177.936175,0.00013698,2]
[356101052,1741903843836,-177.936175,0.00013698,2]
[356101053,1741903843846,-177.936175,0.00013698,2]
[356101054,1741903843856,-177.936175,0.00013698,2]
[356101055,1741903843865,-177.936175,0.00013698,2]
[356101056,1741903843874,-177.936175,0.00013698,2]
[356101057,1741903843884,-577.31,0.00013698,2]
[356101058,1741903843894,-925.56,0.00013698,2]
[356101059,1741903843904,-1198.88,0.00013698,2]
[356101060,1741903843914,-8595.06,0.00013698,2]
[356101061,1741903843923,-588.39125245,0.00013698,2]
[356101062,1741903843933,-500.0,0.00013698,2]
[356101063,1741903843943,-2969.56,0.00013698,2]
[356101064,1741903843953,-500.0,0.00013698,2]
[356101065,1741903843963,-1111.2,0.00013698,2]
[356101066,1741903843972,-811.15,0.00013698,2]
[356101067,1741903843982,-500.0,0.00013698,2]
[356101068,1741903843992,-1215.93,0.00013698,2]
[356101069,1741903844002,-500.0,0.00013698,2]
[356101070,1741903844011,-500.0,0.00013698,2]
[356101071,1741903844021,-5778.55,0.00013698,2]
[356101072,1741903844031,-3194.87,0.00013698,2]
[356101073,1741903844042,-1201.54,0.00013698,2]
[356101074,1741903844051,-500.0,0.00013698,2]
[356101075,1741903844061,-602.83,0.00013698,2]
[356101076,1741903844071,-816.88,0.00013698,2]
[356101077,1741903844137,-854.61,0.00013698,2]
[356101078,1741903844147,-500.0,0.00013698,2]
[356101079,1741903844156,-500.0,0.00013698,2]
[356101080,1741903844166,-500.0,0.00013698,2]
[356101081,1741903844175,-1009.82,0.00013698,2]
[356101082,1741903844186,-344.07606111,0.00013698,2]
[356101086,1741903846710,-27274.28393889,0.00013698,2]
[356101087,1741903846720,-10495.13,0.00013698,2]
[356101088,1741903846729,-586.09,0.00013698,2]
[356101089,1741903846739,-1550.85,0.00013698,2]
[356101090,1741903846748,-1509.12,0.00013698,2]
[356101091,1741903846757,-500.0,0.00013698,2]
[356101092,1741903846766,-593.73936366,0.00013698,2]
[356101093,1741903846775,-500.0,0.00013698,2]
[356101094,1741903846784,-799.75,0.00013698,2]
[356101095,1741903846793,-573.53,0.00013698,2]
[356101096,1741903846803,-1458.75,0.00013698,2]
[356101097,1741903846812,-500.0,0.00013698,2]
[356101098,1741903846822,-500.0,0.00013698,2]
[356101099,1741903846831,-500.0,0.00013698,2]
[356101100,1741903846841,-696.16,0.00013698,2]
[356101101,1741903846850,-500.0,0.00013698,2]
[356101102,1741903846859,-2151.88,0.00013698,2]
[356101103,1741903846868,-500.0,0.00013698,2]
[356101104,1741903846877,-5912.22,0.00013698,2]
[356101105,1741903846886,-1947.29,0.00013698,2]
[356101106,1741903846898,-719.35,0.00013698,2]
[356101107,1741903846907,-500.0,0.00013698,2]
[356101108,1741903846916,-589.26700991,0.00013698,2]
[356101109,1741903846927,-514.56,0.00013698,2]
[356101110,1741903846936,-542.03,0.00013698,2]
[356101111,1741903846946,-500.0,0.00013698,2]
[356101112,1741903846957,-500.0,0.00013698,2]
[356101113,1741903846967,-600.0,0.00013699,2]
[356101114,1741903846976,-451.808106,0.00013699,2]
[356101115,1741903846985,-151.0,0.00013699,2]
[356101116,1741903846995,-151.0,0.00013699,2]
[356101117,1741903847004,-301.95833191,0.00013699,2]
[356101118,1741903847015,-160.027331,0.00013699,2]
[356101119,1741903847024,-489.659864,0.00013699,2]
[356101120,1741903847033,-489.659864,0.00013699,2]
[356101121,1741903847043,-151.0,0.00013699,2]
[356101122,1741903847052,-277.831935,0.00013699,2]
[356101123,1741903847062,-195.227113,0.00013699,2]
[356101124,1741903847072,-195.227113,0.00013699,2]
[356101125,1741903847081,-195.227113,0.00013699,2]
[356101126,1741903847090,-195.227113,0.00013699,2]
[356101127,1741903847100,-195.227113,0.00013699,2]
[356101128,1741903847109,-195.227113,0.00013699,2]
[356101129,1741903847120,-195.227113,0.00013699,2]
[356101130,1741903847129,-195.227113,0.00013699,2]
[356101131,1741903847139,-195.227113,0.00013699,2]
[356101132,1741903847148,-195.227113,0.00013699,2]
[356101133,1741903847158,-2374.71993042,0.00013699,2]
[356101134,1741903847168,-2374.71993042,0.00013699,2]
[356101135,1741903847177,-2374.71993042,0.00013699,2]
[356101136,1741903847187,-2374.71993042,0.00013699,2]
[356101137,1741903847196,-2374.71993042,0.00013699,2]
[356101138,1741903847207,-2374.71993042,0.00013699,2]
[356101139,1741903847216,-1959.50707018,0.00013699,2]
[356101140,1741903847230,-415.21286024,0.00013699,2]
[356101141,1741903847239,-1200.64653976,0.00013699,2]
[356101197,1741904793126,-186.467769,0.00012402,2]
[356101198,1741904793155,-37.98880873,0.00012689,2]
[356101201,1741904843088,-300.0,0.00012688,2]
[356101202,1741904843114,-462.01119127,0.00012689,2]
[356101203,1741904843145,-500.0,0.00012689,2]
[356101204,1741904843171,-432.06585044,0.00012689,2]
[356101205,1741904843198,-500.0,0.00012689,2]
[356101206,1741904843225,-500.0,0.00012689,2]
[356101207,1741904843252,-500.0,0.0001269,2]
[356101208,1741904843276,-500.0,0.0001269,2]
[356101209,1741904843299,-216.02561681,0.0001269,2]
[356101210,1741904843324,-219.30167871,0.0001269,2]
[356101211,1741904843351,-24900.0,0.00012691,2]
[356101212,1741904843374,-163.818954,0.00012707,2]
[356101213,1741904843399,-186.467769,0.00013022,2]
[356101214,1741904843422,-500.0,0.00013164,2]
[356101215,1741904843445,-604.98710239,0.000134,2]
[356101216,1741904843467,-834.77361048,0.00013453,2]
[356101217,1741904843490,-186.8724011,0.000135,2]
[356101218,1741904843512,-1914.0,0.00013636,2]
[356101219,1741904843535,-540.0,0.00013636,2]
[356101220,1741904843559,-399.0,0.00013636,2]
[356101221,1741904843584,-500.0,0.00013673,2]
[356101222,1741904843607,-500.0,0.00013673,2]
[356101223,1741904843631,-500.0,0.00013673,2]
[356101224,1741904843653,-500.0,0.00013673,2]
[356101225,1741904843677,-500.0,0.00013673,2]
[356101226,1741904843699,-500.0,0.00013673,2]
[356101227,1741904843722,-500.0,0.00013673,2]
[356101228,1741904843743,-500.0,0.00013673,2]
[356101229,1741904843765,-500.0,0.00013673,2]
[356101230,1741904843787,-500.0,0.00013673,2]
[356101231,1741904843816,-500.0,0.00013673,2]
[356101232,1741904843838,-497.74439834,0.00013673,2]
[356101233,1741904843860,-500.0,0.00013673,2]
[356101234,1741904843883,-500.0,0.00013673,2]
[356101235,1741904843905,-500.0,0.00013673,2]
[356101236,1741904843926,-500.0,0.00013673,2]
[356101237,1741904843948,-500.0,0.00013673,2]
[356101238,1741904843969,-500.0,0.00013673,2]
[356101239,1741904843991,-500.0,0.00013673,2]
[356101240,1741904844014,-500.0,0.00013673,2]
[356101241,1741904844036,-110912.61709573,0.0001369,2]
[356101338,1741905035828,-1000.0,0.00012,2]
[356101339,1741905035839,-270.22953894,0.00012999,2]
[356101340,1741905035849,-5681.58157252,0.00013,4]
[356101341,1741905035859,-500.0,0.00013164,2]
[356101342,1741905035871,-529.3637146,0.00013598,2]
[356101343,1741905035883,-300.0,0.00013672,2]
[356101344,1741905035892,-500.0,0.00013673,2]
[356101345,1741905035902,-500.0,0.00013673,2]
[356101346,1741905035914,-500.0,0.00013673,2]
[356101347,1741905035924,-500.0,0.00013673,2]
[356101348,1741905035933,-17511.7012658,0.0001369,2]
[356101379,1741905038619,-19065.26302787,0.0001369,2]
[356101402,1741905043785,-1243.5870082,0.0001369,2]
[356101443,1741905046898,-205.55502106,0.0001356,2]
[356101445,1741905046908,-33604.2075894,0.0001369,2]
[356101448,1741905046919,-503.5111751,0.00013697,2]
[356101450,1741905046929,-501.21793176,0.00013697,2]
[356101452,1741905046939,-1000.0,0.00013697,2]
[356101454,1741905046950,-151.0,0.00013698,2]
[356101456,1741905046959,-151.0,0.00013698,2]
[356101458,1741905046969,-151.0,0.00013698,2]
[356101460,1741905046979,-151.0,0.00013698,2]
[356101462,1741905046989,-545.33,0.00013698,2]
[356101464,1741905046999,-500.0,0.00013698,2]
[356101466,1741905047009,-429.2,0.00013698,2]
[356101468,1741905047019,-500.0,0.00013698,2]
[356101470,1741905047029,-500.0,0.00013698,2]
[356101472,1741905047039,-500.0,0.00013698,2]
[356101474,1741905047049,-500.0,0.00013698,2]
[356101476,1741905047058,-1110.59,0.00013698,2]
[356101478,1741905047068,-500.0,0.00013698,2]
[356101480,1741905047078,-716.83,0.00013698,2]
[356101482,1741905047088,-500.0,0.00013698,2]
[356101485,1741905047099,-645.35,0.00013698,2]
[356101487,1741905047108,-500.0,0.00013698,2]
[356101489,1741905047118,-500.0,0.00013698,2]
[356101491,1741905047127,-500.0,0.00013698,2]
[356101493,1741905047137,-500.0,0.00013698,2]
[356101495,1741905047147,-646.58,0.00013698,2]
[356101497,1741905047157,-500.0,0.00013698,2]